Cogmind - Beta 13 @@@ ROGUE MODE // 2024.04.13 @ 19:25:41 // Halloween2019/Abominations Player: Minty Result: Destroyed by Lesser Abomination with Etherial Claws Performance ------------- Evolutions (0) 0 Regions Visited (1) 200 Robots Destroyed (2) 10 Value Destroyed (120) 120 Prototype IDs (0) 0 Alien Tech Used (0) 0 Bonus (0) 0 TOTAL SCORE: 330 Bonus ------- None Cogmind --------- Core Integrity 0/250 Matter 281/300 Energy 92/100 System Corruption 0% Temperature Cool (0) Movement Rolling (80) Location -10/Materials Parts ------- > --- POWER (1) -------- (None) > --- PROPULSION (2) --- Wheel > --- UTILITY (2) ------ Small Storage Unit > --- WEAPON (2) ------- Assault Rifle > --- INVENTORY (8) ---- Ion Engine Ion Engine Light Treads Light Treads Aluminum Leg Peak State ------------ > --- POWER ------------ Ion Engine > --- PROPULSION ------- Aluminum Leg Aluminum Leg > --- UTILITY ---------- Small Storage Unit > --- WEAPON ----------- Medium Laser Medium Laser > --- INVENTORY -------- Ion Engine Light Treads Light Treads Wheel Wheel Assault Rifle [Rating: 6] Favorites ----------- Power Ion Engine Engine Ion Engine Propulsion Aluminum Leg Leg Aluminum Leg Wheel Wheel Utility Small Storage Unit Storage Small Storage Unit Weapon Medium Laser Energy Gun Medium Laser Ballistic Gun Assault Rifle Build | -11 -10 ------- Run | Yrd Mat Slots Evolved . | . . Power . | . . Propulsion . | . . Utility . | . . Weapon . | . . Parts Attached 3 | . 3 Power . | . . Engine . | . . Core . | . . Reactor . | . . Propulsion 2 | . 2 Treads . | . . Leg . | . . Wheel 2 | . 2 Hover . | . . Flight . | . . Utility . | . . Device . | . . Storage . | . . Processor . | . . Hackware . | . . Protection . | . . Artifact . | . . Weapon 1 | . 1 Energy Gun . | . . Energy Cannon . | . . Ballistic Gun 1 | . 1 Ballistic Cannon . | . . Launcher . | . . Special Weapon . | . . Impact Weapon . | . . Slashing Weapon . | . . Piercing Weapon . | . . Special Melee Weapon . | . . Unidentified Prototypes . | . . Parts Lost 4 | . 4 Power . | . . Propulsion 2 | . 2 Utility . | . . Weapon 2 | . 2 Highest Loss Streak 4 | . 4 To Critical Strikes . | . . Average Slot Usage (%) 71 | . 71 Engine 7 | . 7 Leg 14 | . 14 Wheel 7 | . 7 Storage 14 | . 14 Energy Gun 21 | . 21 Ballistic Gun 7 | . 7 Naked Turns . | . . Heaviest Build 14 | 14 14 Greatest Support 20 | 20 20 Greatest Overweight (x) . | . . Average Overweight (x) . | . . Largest Inventory Capacity 8 | . 8 Average Capacity 8 | . 8 Most Carried 6 | . 6 Average Carried 5 | . 5 Final Capacity 8 | 8 8 Final Carried 6 | 6 5 Class Distribution -------------------- None Dominant Class ---------------- None Resources | -11 -10 ----------- Run | Yrd Mat Matter Collected 205 | 200 5 Remotely . | . . Salvage Created 55 | . 55 Parts 2 | . 2 Haulers Intercepted . | . . Recyclers Shooed . | . . Parts Field Recycled . | . . Retrieved Matter . | . . Parts Self-Destructed . | . . Prevented . | . . Kills | -11 -10 ------- Run | Yrd Mat Combat Hostiles Destroyed 2 | . 2 Guns 2 | . 2 Classes Destroyed 1 | . 1 Abomination 2 | . 2 Best Kill Streak 2 | . 2 Combat Bots Only 2 | . 2 Max Kills in Single Turn 1 | . 1 Gunslinging . | . . Exploded . | . . Melee . | . . Uniques/NPCs Destroyed . | . . Combat | -11 -10 -------- Run | Yrd Mat Hostile Shots Fired 27 | . 27 Missed 7 | . 7 Damage Taken 690 | . 690 Core 260 | . 260 Absorbed by Shields . | . . Core Remaining (%) 100 | 100 . Volleys Fired 5 | . 5 Largest 2 | . 2 Hottest 100 | . 100 Shots Fired 9 | . 9 Gun 9 | . 9 Cannon . | . . Launcher . | . . Special . | . . Kinetic 3 | . 3 Thermal 6 | . 6 Explosive . | . . Electromagnetic . | . . Robot Hit Streak 8 | . 8 Robot Miss Streak . | . . Penetration Max . | . . Secondary Targets . | . . Shots Hit Robots 8 | . 8 Core Hits 6 | . 6 Critical Kills . | . . Critical Parts Destroyed . | . . Critical Strikes 1 | . 1 Burn 1 | . 1 Melee Attacks . | . . Impact . | . . Slashing . | . . Piercing . | . . Sneak Attacks . | . . Combat Hostiles . | . . Follow-up Attacks . | . . Damage Inflicted 118 | . 118 Guns 118 | . 118 Cannons . | . . Explosions . | . . Melee . | . . Ramming . | . . Kinetic 25 | . 25 Thermal 93 | . 93 Explosive . | . . Electromagnetic . | . . Impact . | . . Slashing . | . . Piercing . | . . Highest Corruption . | . . Average Corruption . | . . Corruption Purged . | . . Corruption Blocked . | . . Overload Shots . | . . Overflow Damage . | . . Projectiles . | . . Explosions . | . . Melee . | . . Knockbacks . | . . Impact . | . . Kinetic . | . . Secondary . | . . Self-Inflicted Damage . | . . Shots . | . . Rammed . | . . Targets Rammed 1 | . 1 Kicked 1 | . 1 Crushed . | . . Highest Temperature 78 | . 78 Average Temperature 43 | . 43 Received Heat Transfer . | . . Siege Activations . | . . Robots Corrupted . | . . Combat Hostiles . | . . Parts Fried . | . . Impact Corruptions . | . . Robots Melted . | . . Combat Hostiles . | . . Parts Melted . | . . Heat Transferred 72 | . 72 Parts Sabotaged . | . . Parts Stolen . | . . Parts Stripped . | . . Power Chain Reactions . | . . Alert | -11 -10 ------- Run | Yrd Mat Peak Influence 1 | . 1 Initial . | . . Average . | . . Maximum Alert Level . | . . Low Security (%) 100 | . 100 Level 1 . | . . Level 2 . | . . Level 3 . | . . Level 4 . | . . Level 5 . | . . High Security . | . . Max Security . | . . Squads Dispatched 1 | . 1 Investigation . | . . Extermination . | . . Reinforcement 1 | . 1 Assault . | . . Garrison . | . . Intercept . | . . Searches Triggered . | . . Construction Impeded . | . . Haulers Reinforced . | . . Active Scanning Responses . | . . Cargo Convoy Interrupts . | . . Stealth | -11 -10 --------- Run | Yrd Mat Distress Signals . | . . Communications Jammed . | . . Distress Signals . | . . Times Spotted 4 | . 4 Peak Tracking Total 3 | . 3 Tactical Retreats . | . . Traps | -11 -10 ------- Run | Yrd Mat Traps Triggered . | . . Indirectly . | . . Trap Hack Attempts . | . . Triggered . | . . Disarmed . | . . Reprogrammed . | . . Reused . | . . Traps Extracted . | . . Installed . | . . Triggered . | . . Machines | -11 -10 ---------- Run | Yrd Mat Machines Disabled . | . . Max in Single Turn . | . . Machines Repaired . | . . Machines Dismantled . | . . Machines Sabotaged . | . . Overloaded Fab Kills . | . . Hacking | -11 -10 --------- Run | Yrd Mat Machines Accessed . | . . Terminals . | . . Fabricators . | . . Repair Stations . | . . Recycling Units . | . . Scanalyzers . | . . Garrison Access . | . . Total Hacks . | . . Successful . | . . Failed . | . . Catastrophic . | . . Database Lockouts . | . . Manual . | . . Terminals . | . . Fabricators . | . . Repair Stations . | . . Recycling Units . | . . Scanalyzers . | . . Garrison Access . | . . Terminal Hacks . | . . Fabricator Hacks . | . . Repair Station Hacks . | . . Recycling Unit Hacks . | . . Scanalyzer . | . . Garrison Access Hacks . | . . Unauthorized Hacks . | . . Terminals . | . . Fabricators . | . . Repair Stations . | . . Recycling Units . | . . Scanalyzers . | . . Garrison Access . | . . Data Cores Recovered . | . . Used . | . . Hacking Detections . | . . Full Trace Events . | . . Feedback Events . | . . Feedback Blocked . | . . Robot Schematics Acquired . | . . Robots Built . | . . Authchips . | . . Time . | . . Total Robot Build Rating . | . . Part Schematics Acquired . | . . Parts Built . | . . Authchips . | . . Time . | . . Total Part Build Rating . | . . Parts Repaired . | . . Time . | . . Parts Recycled . | . . Recycled Matter . | . . Retrieved Matter . | . . Retrieved Components . | . . Parts Scanalyzed . | . . Part Schematics Acquired . | . . Parts Damaged . | . . Bothacking | -11 -10 ------------ Run | Yrd Mat Used RIF Installer . | . . Robots Hacked . | . . Non-combat . | . . Combat . | . . Robot Hacks Applied . | . . Relay Couplers Released . | . . Fabnet Peak Effective % . | . . Robots Rewired . | . . Allies Hacked . | . . Hacks Repelled . | . . Allies | -11 -10 -------- Run | Yrd Mat Total Allies . | . . Largest Group . | . . Highest-Rated Group . | . . Highest-Rated Ally . | . . Total Orders . | . . Ally Attacks . | . . Total Damage . | . . Kills . | . . Allies Corrupted . | . . Allies Melted . | . . Intel | -11 -10 ------- Run | Yrd Mat Robot Analysis Total . | . . Derelict Logs Recovered . | . . Drone Launches . | . . Drone Recoveries . | . . Exploration | -11 -10 ------------- Run | Yrd Mat Turns Passed 23 | . 23 Spaces Moved 6 | 1 5 Core . | . . Treads . | . . Legs 4 | 1 3 Wheels 2 | . 2 Hover . | . . Flight . | . . Fastest Speed 80 | 120 80 Average Speed 106 | 120 104 Slowest Speed 120 | 120 120 Overloaded Moves . | . . Propulsion Burnouts . | . . Robots Hopped . | . . Cave-ins Triggered . | . . Exploration Rate (%) 3 | 1 5 Regions Visited 1 Branch Regions . Pre-discovered Areas . | . . Known Exits Taken . | . . Unknown Exits Taken 1 | 1 . Scrap Searched . | . . Spaces Dug . | . . Terrain Destroyed . | . . Melee . | . . Projectile . | . . AOE . | . . Terrain Rammed . | . . Walls Destroyed . | . . Machines Disabled . | . . Actions | -11 -10 --------- Run | Yrd Mat Total 15 | . 15 Wait . | . . Move 5 | . 5 Hop . | . . Pick Up . | . . Fast Attach . | . . Attach 2 | . 2 Detach 1 | . 1 Swap 1 | . 1 Drop . | . . Fire 5 | . 5 Melee . | . . Ram . | . . Kick 1 | . 1 Crush . | . . Escape Stasis . | . . Rewire . | . . Trap . | . . Miscellaneous . | . . Route ------- -11/Scrapyard -10/Materials History --------- Turn | Location | Event 1 | -11/Scrapyard | Discovered new exit (range 0) 1 | -11/Scrapyard | Entered Materials 15 | -10/Materials | Core integrity fell below 50% 24 | -10/Materials | Destroyed by Lesser Abomination with Etherial Claws Last Messages --------------- 00005_ Lgt. Ion Engine springs to life within a quantum being. 00005_ Kicked Lesser Abomination. 00006_ Lesser Abomination absorbs Lrg. Matter Pod. 00006_ Lgt. Ion Engine springs to life within a quantum being. 00006_ Lesser Abomination destroyed. 00007_ Lesser Abomination absorbs Lrg. Matter Pod. 00008_ Lgt. Ion Engine springs to life within a quantum being. 00009_ Lesser Abomination suffers critical hit (Burn). 00010_ Aluminum Leg destroyed. 00012_ ALERT: Virus reaching critical density, losing system control. 00012_ Critical hit (Intensify). 00013_ Acquired 5 matter. 00013_ Critical hit (Intensify). 00014_ Wheel destroyed. 00014_ Med. Laser destroyed. 00018_ Lesser Abomination destroyed. 00019_ ALERT: Hostiles spotted, dispatching reinforcements to Terminal M002. 00023_ Med. Laser destroyed. 00024_ Critical hit (Intensify). Map ----- +----------------------------------------------------+ | ????????????????????????????????????????????? | | ????????????????????????????????????????????? | | ????????????????????????????????????????????? | | ????????????????????????????????????????????? | | ????????????????????????????????????????????? | | ????????????????????????????????????????????? | | ????????????????????????????????????????????? | | ????????????????????????????????????????????? | | ????????????????????????????????????????????? | | ???????????????????? ?????????????????????? | | ???????????????????? ????????????????????? | | ???????????????????? #????????????????????? | | ???????????????????? #????????????????????? | | ???????????????????# #????????????????????? | | ???????????????????+ #????????????????????? | | ???????????????????# #????????????????????? | | ???????????????????# #????????????????????? | | ???????????????????# #????????????????????? | | ???????????????????# #????????????????????? | | ??????????########## #????????????????????? | | ??????????# # #????????????????????? | | ??????????# # #????????????????????? | | ??????????+ A # #????????????????????? | | ??????????# # #????????????????????? | | ??????????# % A% #????????????????????? | | ??????????# #@ #????????????????????? | | ??????????# # #????????????????????? | | ??????????+ #####????????????????????? | | ??????????# #????????????????????????? | | ??????????##########????????????????????????? | | ????????????????????????????????????????????? | | ????????????????????????????????????????????? | | ????????????????????????????????????????????? | | ????????????????????????????????????????????? | | ????????????????????????????????????????????? | | ????????????????????????????????????????????? | | ????????????????????????????????????????????? | | | | | | | | | | | | | | | | | | | | | | | | | | | +----------------------------------------------------+ Best States ------------- Heat Dissipation 25 Energy Generation 10 Energy Capacity 250 Matter Stores 300 Matter Capacity 300 Sight Range 16 Terrain Scan Density 10 Evasion (%) 40 Item Schematics ----------------- None Robot Schematics ------------------ None Fabricated ------------ Nothing Alien Tech Used ----------------- None Achievements -------------- None Challenges ------------ None Game ------ Seed BarrageReflectiveDriver Manual? 0 Play Time 00:00:53 Cumulative 711.7 hours Start 2024.04.13 @ 19:25:13 End 2024.04.13 @ 19:25:41 Sessions 1 Manual Loads 0 Difficulty Rogue Special Mode Halloween2019/Abominations Game No. 759 Rogue 484 Adventurer 123 Explorer 152 Win Type - Total 26 Types 20/0/4/1/0/0/0/1/0 Lore% 83 Gallery% 91 Achievement% 76 Wizard Run 0 Options --------- Layout 0 ASCII 0 Keyboard 1 Movement Numpad Keybinds 0 Fullscreen 2 Font 18/Terminus Map View 76x50 Zoom Use 0% Tactical HUD 1 Map Filters NONE Filters NONE Steam 1 RUN: 0f8d2fbe-d975-463e-a75b-39de441efabd